fUSD/lending_fUSD_20250327
["ID","MTS","AMOUNT","RATE_DAILY","PERIOD"]
[356736019,1743069117997,-661.7250107,0.0004658,120]
[356736020,1743069118022,-661.7250107,0.0004658,120]
[356736021,1743069118047,-661.7250107,0.0004658,120]
[356736022,1743069118072,-661.7250107,0.0004658,120]
[356736023,1743069118096,-661.7250107,0.0004658,120]
[356736024,1743069118122,-661.7250107,0.0004658,120]
[356736025,1743069118146,-661.7250107,0.0004658,120]
[356736026,1743069118172,-661.7250107,0.0004658,120]
[356736027,1743069118198,-661.7250107,0.0004658,120]
[356736028,1743069118223,-661.7250107,0.0004658,120]
[356736029,1743069118249,-661.7250107,0.0004658,120]
[356736030,1743069118275,-661.72,0.0004658,120]
[356736031,1743069118300,-1544.02502497,0.0004658,120]
[356736032,1743069118328,-1544.02502497,0.0004658,120]
[356736033,1743069118355,-1544.02502497,0.0004658,120]
[356736034,1743069118381,-1544.02502497,0.0004658,120]
[356736035,1743069118407,-1544.02502497,0.0004658,120]
[356736036,1743069118432,-1544.02502497,0.0004658,120]
[356736037,1743069118457,-1544.02502497,0.0004658,120]
[356736038,1743069118482,-1544.02502497,0.0004658,120]
[356736039,1743069118507,-1544.02502497,0.0004658,120]
[356736040,1743069118532,-1544.02502497,0.0004658,120]
[356736041,1743069118557,-1544.02502497,0.0004658,120]
[356736042,1743069118583,-1544.02502497,0.0004658,120]
[356736043,1743069118608,-1544.02502497,0.0004658,120]
[356736044,1743069118633,-1544.02502497,0.0004658,120]
[356736045,1743069118658,-1544.02502497,0.0004658,120]
[356736046,1743069118683,-1544.02502497,0.0004658,120]
[356736047,1743069118708,-1544.02502497,0.0004658,120]
[356736048,1743069118733,-1544.02502497,0.0004658,120]
[356736049,1743069118758,-1544.02502497,0.0004658,120]
[356736050,1743069118782,-1544.02,0.0004658,120]
[356736051,1743069118807,-281.10422225,0.0004658,120]
[356736052,1743069118831,-281.10422225,0.0004658,120]
[356736053,1743069118855,-281.10422225,0.0004658,120]
[356736054,1743069118880,-281.10422225,0.0004658,120]
[356736055,1743069118904,-281.10422225,0.0004658,120]
[356736056,1743069118929,-281.10422225,0.0004658,120]
[356736057,1743069118953,-281.10422225,0.0004658,120]
[356736058,1743069118978,-281.10422225,0.0004658,120]
[356736059,1743069119003,-281.10422225,0.0004658,120]
[356736060,1743069119029,-281.10422225,0.0004658,120]
[356736061,1743069119054,-281.10422225,0.0004658,120]
[356736062,1743069119079,-281.10422225,0.0004658,120]
[356736063,1743069119104,-281.10422225,0.0004658,120]
[356736064,1743069119128,-281.10422225,0.0004658,120]
[356736065,1743069119152,-281.10422225,0.0004658,120]
[356736066,1743069119176,-281.10422225,0.0004658,120]
[356736067,1743069119201,-281.10422225,0.0004658,120]
[356736068,1743069119227,-281.10422225,0.0004658,120]
[356736069,1743069119252,-281.10422225,0.0004658,120]
[356736070,1743069119276,-281.1,0.0004658,120]
[356736071,1743069119306,-655.90985192,0.0004658,120]
[356736072,1743069119331,-655.90985192,0.0004658,120]
[356736073,1743069119356,-655.90985192,0.0004658,120]
[356736074,1743069119384,-655.90985192,0.0004658,120]
[356736075,1743069119410,-655.90985192,0.0004658,120]
[356736076,1743069119434,-655.90985192,0.0004658,120]
[356736077,1743069119460,-655.90985192,0.0004658,120]
[356736078,1743069119485,-655.90985192,0.0004658,120]
[356736079,1743069119510,-655.90985192,0.0004658,120]
[356736080,1743069119535,-655.90985192,0.0004658,120]
[356736081,1743069119667,-655.90985192,0.0004658,120]
[356736082,1743069119692,-655.90985192,0.0004658,120]
[356736083,1743069119717,-655.90985192,0.0004658,120]
[356736084,1743069119742,-655.90985192,0.0004658,120]
[356736085,1743069119766,-655.90985192,0.0004658,120]
[356736086,1743069119790,-655.90985192,0.0004658,120]
[356736087,1743069119814,-655.90985192,0.0004658,120]
[356736088,1743069119839,-655.90985192,0.0004658,120]
[356736089,1743069119863,-655.90985192,0.0004658,120]
[356736090,1743069119886,-655.9,0.0004658,120]
[356736091,1743069119910,-500.0,0.00046591,30]
[356736092,1743069119935,-800.0,0.00046603,30]
[356736093,1743069119958,-998.0,0.00046609,30]
[356736094,1743069119982,-500.0,0.0004661,30]
[356736095,1743069120006,-740.84130037,0.0004662,30]
[356736096,1743069120030,-500.0,0.00046646,30]
[356736097,1743069120055,-500.0,0.00046674,30]
[356736098,1743069120081,-500.0,0.00046675,30]
[356736099,1743069120106,-500.0,0.00046681,30]
[356736100,1743069120131,-800.0,0.0004671,30]
[356736101,1743069120155,-500.0,0.00046732,30]
[356736102,1743069120180,-900.0,0.0004674,120]
[356736103,1743069120205,-13585.66,0.00046763,90]
[356736104,1743069120231,-500.0,0.0004677,30]
[356736105,1743069120256,-2037.233,0.0004678,31]
[356736106,1743069120282,-800.0,0.0004681,30]
[356736107,1743069120308,-513.44,0.00046837,30]
[356736108,1743069120333,-828.77093202,0.00046841,30]
[356736109,1743069120359,-735.16,0.00046849,120]
[356736110,1743069120385,-596.65,0.00046849,120]
[356736111,1743069120411,-888.41,0.00046849,120]
[356736112,1743069120434,-3951.73,0.00046849,120]
[356736113,1743069120458,-722.98,0.00046849,120]
[356736114,1743069120483,-2274.62,0.00046849,120]
[356736115,1743069120508,-571.3,0.00046849,120]
[356736116,1743069120533,-11650.34,0.00046849,120]
[356736117,1743069120558,-2740.9,0.00046849,120]
[356736118,1743069120584,-1033.24,0.00046849,120]
[356736119,1743069120609,-318.14871722,0.00046849,120]
[356736120,1743069120635,-823.07,0.00046849,120]
[356736121,1743069120660,-548.45,0.00046849,120]
[356736122,1743069120684,-565.82,0.00046849,120]
[356736123,1743069120709,-1000.0,0.00046888,120]
[356736124,1743069120734,-155.04168,0.000469,120]
[356736125,1743069120759,-800.0,0.00046902,30]
[356736126,1743069120784,-500.0,0.00046911,30]
[356736127,1743069120810,-800.0,0.00046986,30]
[356736128,1743069120835,-500.0,0.00046989,30]
[356736129,1743069120859,-339.40394292,0.00046998,120]
[356736130,1743069120884,-500.0,0.00046999,30]
[356736131,1743069120911,-50000.0,0.00047,47]
[356736132,1743069120937,-290636.26627633,0.00047,120]
[356736133,1743069120961,-589.18669283,0.00047,30]
[356736134,1743069120985,-800.0,0.00047014,30]
[356736135,1743069121010,-500.0,0.00047052,30]
[356736136,1743069121035,-500.0,0.00047086,30]
[356736137,1743069121060,-998.0,0.00047089,30]
[356736138,1743069121086,-415.1,0.00047103,120]
[356736139,1743069121111,-500.0,0.00047115,30]
[356736140,1743069121136,-800.0,0.00047119,30]
[356736141,1743069121161,-735.16,0.00047123,120]
[356736142,1743069121187,-596.65,0.00047123,120]
[356736143,1743069121213,-888.41,0.00047123,120]
[356736144,1743069121239,-3951.73,0.00047123,120]
[356736145,1743069121264,-722.98,0.00047123,120]
[356736146,1743069121291,-2274.62,0.00047123,120]
[356736147,1743069121321,-571.3,0.00047123,120]
[356736148,1743069121347,-11650.34,0.00047123,120]
[356736149,1743069121467,-2740.9,0.00047123,120]
[356736150,1743069121496,-1033.24,0.00047123,120]
[356736151,1743069121522,-823.07,0.00047123,120]
[356736152,1743069121548,-548.45,0.00047123,120]
[356736153,1743069121573,-565.82,0.00047123,120]
[356736154,1743069121598,-500.0,0.00047166,30]
[356736155,1743069121624,-500.0,0.00047167,30]
[356736156,1743069121649,-500.0,0.00047194,30]
[356736157,1743069121673,-2412.257999,0.000472,60]
[356736158,1743069121697,-500.0,0.00047245,30]
[356736159,1743069121722,-501.11945736,0.00047257,30]
[356736160,1743069121746,-900.0,0.00047288,120]
[356736161,1743069121771,-500.0,0.00047301,30]
[356736162,1743069121795,-500.0,0.00047308,30]
[356736163,1743069121820,-567.94586169,0.00047326,30]
[356736164,1743069121844,-501.91549943,0.00047339,30]
[356736165,1743069121870,-2448.72671802,0.00047347,60]
[356736166,1743069121895,-500.0,0.00047355,30]
[356736167,1743069121919,-500.0,0.00047383,30]
[356736168,1743069121944,-500.0,0.00047393,30]
[356736169,1743069121969,-735.27640852,0.00047397,120]
[356736170,1743069121994,-596.86234414,0.00047397,120]
[356736171,1743069122018,-888.48471265,0.00047397,120]
[356736172,1743069122042,-3951.74728271,0.00047397,120]
[356736173,1743069122067,-723.18638458,0.00047397,120]
[356736174,1743069122093,-2274.75787709,0.00047397,120]
[356736175,1743069122119,-571.42,0.00047397,120]
[356736176,1743069122142,-11650.5341461,0.00047397,120]
[356736177,1743069122167,-2741.12191794,0.00047397,120]
[356736178,1743069122191,-1033.26696411,0.00047397,120]
[356736179,1743069122216,-823.29517434,0.00047397,120]
[356736180,1743069122241,-548.59179415,0.00047397,120]
[356736181,1743069122265,-565.90402594,0.00047397,120]
[356736182,1743069122292,-213.0,0.000474,120]
[356736183,1743069122323,-800.0,0.00047414,30]
[356736184,1743069122347,-500.0,0.0004743,30]
[356736185,1743069122372,-500.0,0.00047475,30]
[356736186,1743069122398,-500.0,0.00047486,30]
[356736187,1743069122422,-217.82911274,0.000475,120]
[356736188,1743069122446,-1910.49044612,0.000475,90]
[356736189,1743069122470,-500.0,0.00047516,30]
[356736190,1743069122494,-998.0,0.0004757,30]
[356736191,1743069122518,-500.0,0.00047591,30]
[356736192,1743069122541,-924.83585929,0.00047603,30]
[356736193,1743069122565,-502.33356164,0.00047624,30]
[356736194,1743069122589,-500.0,0.00047632,30]
[356736195,1743069122613,-800.0,0.00047642,30]
[356736196,1743069122637,-500.0,0.00047656,30]
[356736197,1743069122662,-500.0,0.00047673,30]
[356736198,1743069122686,-503.53820478,0.00047685,30]
[356736199,1743069122710,-2000.0,0.000477,120]
[356736200,1743069122735,-2000.0,0.000477,120]
[356736201,1743069122760,-485.0,0.000477,120]
[356736202,1743069122784,-652.81379523,0.00047711,30]
[356736203,1743069122808,-500.0,0.00047737,30]
[356736204,1743069122832,-500.0,0.00047739,30]
[356736205,1743069122858,-800.0,0.00047739,30]
[356736206,1743069122882,-887.44765911,0.0004775,30]
[356736207,1743069122906,-1328.55972403,0.00047771,30]
[356736208,1743069122930,-362.46707101,0.00047797,30]
[356736209,1743069122954,-156.57943885,0.000478,120]
[356736210,1743069122984,-154.5,0.000478,42]
[356736211,1743069123013,-154.5,0.000478,42]
[356736212,1743069123045,-154.5,0.000478,42]
[356736213,1743069123077,-154.5,0.000478,42]
[356736214,1743069123108,-154.5,0.000478,42]
[356736215,1743069123231,-154.5,0.000478,42]
[356736216,1743069123268,-154.5,0.000478,42]
[356736217,1743069123302,-154.5,0.000478,42]
[356736218,1743069123331,-500.0,0.00047809,30]
[356736219,1743069123357,-500.96638973,0.00047815,30]
[356736220,1743069123383,-706.45612787,0.00047833,30]
[356736221,1743069123409,-275.25873742,0.00047836,120]
[356736222,1743069123435,-515.81530001,0.0004784,30]
[356736223,1743069123460,-150.0,0.00047856,30]
[356736224,1743069123486,-480.15460522,0.00047856,30]
[356736225,1743069123511,-150.0,0.00047856,30]
[356736226,1743069123538,-1040.36316354,0.00047869,31]
[356736227,1743069123565,-350.0,0.00047945,120]
[356736228,1743069123591,-440.68104194,0.00047945,120]
[356736229,1743069123617,-500.0,0.00047945,120]
[356736230,1743069123643,-500.0,0.00047945,120]
[356736231,1743069123670,-500.0,0.00047945,120]
[356736232,1743069123696,-500.0,0.00047945,120]
[356736233,1743069123721,-500.0,0.00047945,120]
[356736234,1743069123747,-500.0,0.00047945,120]
[356736235,1743069123772,-500.0,0.00047945,120]
[356736236,1743069123798,-500.0,0.00047945,120]
[356736237,1743069123822,-500.0,0.00047945,120]
[356736238,1743069123848,-698.223,0.00047945,120]
[356736239,1743069123872,-503.31450006,0.00047989,60]
[356736240,1743069123900,-50000.0,0.00048,48]
[356736241,1743069123924,-760.0,0.00048,120]
[356736242,1743069123949,-200.0,0.00048,120]
[356736243,1743069123975,-165.0,0.00048,120]
[356736244,1743069124000,-965.0155982,0.00048,120]
[356736245,1743069124025,-362.0,0.00048,120]
[356736246,1743069124051,-709.6268736,0.00048,49]
[356736247,1743069124078,-566.08614526,0.00048,120]
[356736248,1743069124104,-429.96787064,0.00048,120]
[356736249,1743069124130,-998.0,0.0004805,30]
[356736250,1743069124155,-332.20844402,0.0004805,30]
[356736251,1743069124181,-2018.82033753,0.000482,120]
[356736252,1743069124207,-155.04168,0.000482,120]
[356736253,1743069124234,-150.0,0.00048243,30]
[356736254,1743069124259,-480.15460522,0.00048243,30]
[356736255,1743069124285,-150.0,0.00048243,30]
[356736256,1743069124313,-150.0,0.00048243,30]
[356736257,1743069124340,-480.15460522,0.00048243,30]
[356736258,1743069124366,-150.0,0.00048243,30]
[356736259,1743069124395,-154.13047094,0.00048316,60]
[356736260,1743069124422,-1076000.0,0.000485,120]
[356736261,1743069124449,-998.0,0.00048531,30]
[356736262,1743069124475,-152.23772863,0.000486,120]
[356736263,1743069124500,-240.0,0.000486,120]
[356736264,1743069124526,-150.0,0.000487,120]
[356736265,1743069124551,-211.40187,0.000487,120]
[356736266,1743069124576,-150.0,0.000487,120]
[356736267,1743069124602,-5000.0,0.0004876,31]
[356736268,1743069124627,-2000.0,0.0004876,31]
[356736269,1743069124652,-178.23151724,0.000488,120]
[356736270,1743069124677,-157802.74295227,0.000488,120]
[356736271,1743069124702,-157.95683,0.000489,120]
[356736272,1743069124729,-150.0,0.000489,120]
[356736273,1743069124754,-5000.0,0.0004896,31]
[356736274,1743069124778,-353.43092011,0.0004896,30]
[356736275,1743069124806,-50000.0,0.00049,49]
[356736276,1743069124831,-423.355539,0.00049,60]
[356736277,1743069124856,-166.80359227,0.00049,120]
[356736278,1743069124882,-151.39535619,0.00049,120]
[356736279,1743069124993,-12994.13699294,0.00049,30]
[356736280,1743069125021,-1000000.0,0.00049,120]
[356736281,1743069125047,-442.3639862,0.00049,120]
[356736282,1743069125072,-50000.00000001,0.00049,120]
[356736283,1743069125098,-450.0,0.00049,50]
[356736284,1743069125123,-350.56871192,0.00049,120]
[356736285,1743069125149,-5450.0,0.00049,120]
[356736286,1743069125174,-91449.83748203,0.00049,30]
[356736287,1743069125199,-998.0,0.00049011,30]
[356736288,1743069125225,-331.34876177,0.00049315,120]
[356736289,1743069125249,-500.0,0.00049315,120]
[356736290,1743069125274,-2470.68687437,0.00049346,120]
[356736291,1743069125300,-500.0,0.000494,120]
[356736292,1743069125328,-204.54726188,0.000494,120]
[356736293,1743069125352,-2000.0,0.0004944,30]
[356736294,1743069125377,-998.0,0.00049492,30]
[356736295,1743069125403,-535411.64233887,0.000495,120]
[356736296,1743069138597,-282.13757331,0.000372,103]
[356736297,1743069138636,-500.0,0.00041095,30]
[356736298,1743069138665,-595.11984348,0.00041369,30]
[356736299,1743069138692,-500.0,0.00041369,30]
[356736300,1743069138724,-500.0,0.00041643,30]
[356736301,1743069138753,-458.87360002,0.00041917,30]
[356736302,1743069138790,-153.0,0.00046027,90]
[356736303,1743069138817,-153.0,0.00046027,90]
[356736304,1743069138940,-153.0,0.00046027,90]
[356736305,1743069138968,-153.0,0.00046027,90]
[356736306,1743069138995,-153.0,0.00046027,90]
[356736307,1743069139023,-153.0,0.00046027,90]
[356736308,1743069139052,-1000.0,0.0004876,31]
[356736309,1743069139084,-1000.0,0.0004876,31]
[356736310,1743069139112,-1000.0,0.0004876,31]
[356736311,1743069139139,-1000.0,0.0004876,31]
[356736312,1743069139166,-1000.0,0.0004876,31]
[356736313,1743069139192,-1000.0,0.0004876,31]
[356736314,1743069139220,-1000.0,0.0004876,31]
[356736315,1743069139249,-1000.0,0.0004876,31]
[356736316,1743069139276,-1000.0,0.0004876,31]
[356736317,1743069139305,-1000.0,0.0004876,31]
[356736318,1743069139334,-1000.0,0.0004876,31]
[356736319,1743069139362,-1000.0,0.0004876,31]
[356736320,1743069139389,-1000.0,0.0004876,31]
[356736321,1743069139415,-1000.0,0.0004876,31]
[356736322,1743069139441,-1000.0,0.0004876,31]
[356736323,1743069139467,-1000.0,0.0004876,31]
[356736324,1743069139494,-1000.0,0.0004876,31]
[356736325,1743069139520,-1000.0,0.0004876,31]
[356736326,1743069139546,-1000.0,0.0004876,31]
[356736327,1743069139573,-1000.16745512,0.0004876,31]
[356736328,1743069139602,-464588.35766113,0.000495,120]
[356736329,1743069139628,-222.87624401,0.000495,120]
[356736330,1743069139654,-155.04168,0.000495,120]
[356736331,1743069139680,-293.85303236,0.000495,50]
[356736332,1743069139707,-557.05159899,0.000495,45]
[356736333,1743069139732,-525.54,0.00049589,31]
[356736334,1743069139757,-150.0,0.00049676,120]
[356736335,1743069139783,-5000.0,0.0004968,31]
[356736336,1743069139809,-2000.0,0.0004968,31]
[356736337,1743069139836,-2000.0,0.0004975,30]
[356736338,1743069139862,-155.795389,0.000498,30]
[356736339,1743069139887,-200.02,0.000498,120]
[356736340,1743069139913,-3000.0,0.00049839,120]
[356736341,1743069139944,-2000.0,0.0004988,31]
[356736342,1743069139977,-223.43330557,0.0004994,30]
[356736343,1743069140004,-1000.0,0.00049999,120]
[356736344,1743069140032,-342.72551972,0.00049999,120]
[356736345,1743069140060,-500.0,0.00049999,120]
[356736346,1743069140090,-50000.0,0.0005,50]
[356736347,1743069140118,-542.02929013,0.0005,30]
[356736348,1743069140146,-1059.79294578,0.0005,120]
[356736349,1743069140173,-2015.88916983,0.0005,120]
[356736350,1743069140200,-212.43386568,0.0005,120]
[356736351,1743069140231,-161.72766034,0.0005,120]
[356736352,1743069140259,-150.0,0.0005,120]
[356736353,1743069140285,-1500.0,0.0005,30]
[356736354,1743069140313,-700.0,0.0005,120]
[356736355,1743069140340,-599.28166134,0.0005,120]
[356736356,1743069140367,-279.33782821,0.0005,120]
[356736357,1743069140396,-1282.09461395,0.0005,120]
[356736358,1743069140422,-157.10668916,0.0005,120]
[356736359,1743069140448,-274.10369847,0.0005,120]
[356736360,1743069140477,-200.0,0.0005,120]
[356736361,1743069140616,-206.0,0.0005,120]
[356736362,1743069140644,-10000.0,0.0005,120]
[356736363,1743069140672,-10000.0,0.0005,120]
[356736364,1743069140699,-10000.0,0.0005,120]
[356736365,1743069140725,-10000.0,0.0005,120]
[356736366,1743069140751,-10000.0,0.0005,120]
[356736367,1743069140778,-10000.0,0.0005,120]
[356736368,1743069140803,-10000.0,0.0005,120]
[356736369,1743069140830,-10000.0,0.0005,120]
[356736370,1743069140856,-10000.0,0.0005,120]
[356736371,1743069140882,-10000.0,0.0005,120]
[356736372,1743069140909,-10000.0,0.0005,120]
[356736373,1743069140935,-10000.0,0.0005,120]
[356736374,1743069140960,-10000.0,0.0005,120]
[356736375,1743069140986,-10000.0,0.0005,120]
[356736376,1743069141012,-3580.51841183,0.0005,120]
[356736377,1743069141037,-951.36980658,0.0005,45]
[356736378,1743069141064,-2542.77688927,0.0005,30]
[356736379,1743069141090,-205.40286,0.0005,120]
[356736380,1743069141116,-2935.0,0.0005,120]
[356736381,1743069141143,-1000000.0,0.0005,120]
[356736382,1743069141170,-2500.0,0.0005,30]
[356736383,1743069141197,-696.67089545,0.0005,120]
[356736384,1743069141223,-583.61,0.0005,120]
[356736385,1743069141250,-450.0,0.0005,51]
[356736386,1743069141277,-1000000.0,0.0005,120]
[356736387,1743069141304,-50000.0,0.0005,30]
[356736388,1743069141332,-100234.0,0.0005,120]
[356736389,1743069141358,-1079921.33,0.0005,120]
[356736390,1743069141385,-209.57409432,0.0005,120]
[356736391,1743069141411,-7258.80914616,0.0005,120]
[356736392,1743069141437,-157.95683,0.000501,120]
[356736393,1743069141463,-166.20858,0.000501,120]
[356736394,1743069141490,-525.54,0.00050136,34]
[356736395,1743069141515,-2000.0,0.0005044,30]
[356736396,1743069141543,-1000000.0,0.000505,120]
[356736397,1743069141569,-150.0,0.00050613,120]
[356736398,1743069141596,-525.54,0.00050684,37]
[356736399,1743069141623,-155.04168,0.000508,120]
[356736400,1743069141648,-13061.0,0.0005085,90]
[356736401,1743069141674,-1000.0,0.00050999,120]
[356736402,1743069141702,-50000.0,0.00051,51]
[356736403,1743069141728,-450.0,0.00051,52]
[356736404,1743069141755,-1000000.0,0.00051,120]
[356736405,1743069141780,-3000.0,0.00051,120]
[356736406,1743069141805,-1051.0,0.00051,120]
[356736407,1743069141833,-1000000.0,0.00051,120]
[356736408,1743069141859,-525.54,0.00051232,40]
[356736409,1743069141885,-3223.449,0.00051275,120]
[356736410,1743069141912,-3223.449,0.00051275,120]
[356736411,1743069141938,-3223.45,0.00051275,120]
[356736412,1743069141964,-3223.449,0.00051275,120]
[356736413,1743069141989,-3223.45,0.00051275,120]
[356736414,1743069142015,-157.95683,0.000513,120]
[356736415,1743069142041,-150.0,0.000513,120]
[356736416,1743069142149,-2000.0,0.0005144,30]
[356736417,1743069142177,-950729.11665079,0.000515,120]
[356736418,1743069148231,-500.0,0.0004876,31]
[356736419,1743069148258,-894.47298684,0.0004876,31]
[356736420,1743069148289,-49270.88334921,0.000515,120]
[356736421,1743069148317,-150.0,0.0005155,120]
[356736422,1743069148344,-415.1,0.00051582,120]
[356736423,1743069148371,-525.54,0.0005178,43]
[356736424,1743069148398,-1000.0,0.00051999,120]
[356736425,1743069148426,-50000.0,0.00052,52]
[356736426,1743069148453,-1000000.0,0.00052,120]
[356736427,1743069148478,-358.39208292,0.00052,120]
[356736428,1743069148504,-198.15881931,0.00052,120]
[356736429,1743069148532,-1000000.0,0.00052,120]
[356736430,1743069148560,-200.0,0.00052,120]
[356736431,1743069148587,-750.0,0.00052,120]
[356736432,1743069148613,-450.0,0.00052,53]
[356736433,1743069148639,-91449.83748203,0.00052,30]
[356736434,1743069148664,-155.04168,0.000521,120]
[356736435,1743069148690,-525.54,0.00052328,46]
[356736436,1743069148715,-2000.0,0.0005235,31]
[356736437,1743069148740,-166.62222222,0.00052438,120]
[356736438,1743069148845,-2000.0,0.0005244,30]
[356736439,1743069148871,-150.0,0.00052488,120]
[356736440,1743069148898,-157.95683,0.000525,120]
[356736441,1743069148925,-1000000.0,0.000525,120]
[356736442,1743069148952,-165.91366,0.000526,120]
[356736443,1743069148979,-2000.0,0.0005265,31]
[356736444,1743069149004,-3000.0,0.0005269,31]
[356736445,1743069149030,-3000.0,0.0005275,31]
[356736446,1743069149056,-525.54,0.00052876,49]
[356736447,1743069149082,-2000.0,0.0005296,30]
[356736448,1743069149108,-1000.0,0.00052999,120]
[356736449,1743069149137,-50000.0,0.00053,53]
[356736450,1743069149165,-1000000.0,0.00053,120]
[356736451,1743069149193,-1000000.0,0.00053,120]
[356736452,1743069149219,-3918.35,0.00053,120]
[356736453,1743069149246,-260.4078417,0.00053,30]
[356736454,1743069149272,-165.0,0.00053,120]
[356736455,1743069149298,-450.0,0.00053,54]
[356736456,1743069149328,-740.84130037,0.00053,30]
[356736457,1743069149355,-155.04168,0.000534,120]
[356736458,1743069149381,-525.54,0.00053424,52]
[356736459,1743069149407,-150.0,0.00053425,120]
[356736460,1743069149434,-1000000.0,0.000535,120]
[356736461,1743069149460,-2000.0,0.0005355,30]
[356736462,1743069149486,-540.89245649,0.00053599,120]
[356736463,1743069149512,-157.95683,0.000537,120]
[356736464,1743069149538,-525.54,0.00053972,55]
[356736465,1743069149563,-36963.32979464,0.00053988,120]
[356736466,1743069149589,-1000.0,0.00053999,120]
[356736467,1743069149617,-50000.0,0.00054,54]
[356736468,1743069149644,-1000000.0,0.00054,120]
[356736469,1743069149672,-639438.10098427,0.00054,120]
[356736470,1743069152214,-360561.89901573,0.00054,120]
[356736471,1743069152244,-3000.0,0.00054,120]
[356736472,1743069152272,-450.0,0.00054,55]
[356736473,1743069152303,-200.0,0.00054,120]
[356736474,1743069152334,-279.59613372,0.00054,120]
[356736475,1743069152444,-353.43092011,0.00054,30]
[356736476,1743069152472,-150.34,0.00054384,120]
[356736477,1743069152499,-1000000.0,0.000545,120]
[356736478,1743069152526,-525.54,0.0005452,58]
[356736479,1743069152553,-19487.36020362,0.00054545,120]
[356736480,1743069152580,-298.36270482,0.000546,120]
[356736481,1743069152607,-50189.00023182,0.000547,120]
[356736482,1743069152633,-155.04168,0.000547,120]
[356736483,1743069152660,-644.80485806,0.00054794,120]
[356736484,1743069152687,-500.0,0.00054794,30]
[356736485,1743069152715,-500.0,0.00054794,30]
[356736486,1743069152744,-500.0,0.00054794,30]
[356736487,1743069152771,-500.0,0.00054794,30]
[356736488,1743069152798,-280.56458872,0.00054794,30]
[356736489,1743069152826,-13080.12,0.00054795,30]
[356736490,1743069152857,150.0,0.00052328,46]
[356736491,1743069152943,150.0,0.0005235,31]
[356736492,1743069152982,500.0,0.00049999,120]
[356736493,1743069153016,258.45296775,0.00049999,120]
[356736494,1743069153276,150.0,0.00052438,120]
[356736495,1743069153719,150.0,0.0005244,30]
[356736496,1743069154173,150.0,0.00052488,120]
[356736497,1743069154735,150.0,0.000525,120]
[356736498,1743069155247,150.0,0.000526,120]
[356736499,1743069155701,150.0,0.0005265,31]
[356736500,1743069156170,150.0,0.0005269,31]
[356736501,1743069156572,150.0,0.0005275,31]
[356736502,1743069157009,150.0,0.00052876,49]
[356736503,1743069158023,150.0,0.0005296,30]
[356736504,1743069158543,150.0,0.00052999,120]
[356736505,1743069159014,150.0,0.00053,53]
[356736506,1743069159539,150.0,0.000534,120]
[356736507,1743069160116,150.0,0.00053424,52]
[356736620,1743069367103,1079.93100788,0.00032387,30]
[356736621,1743069421684,3092.0,0.00032387,31]
[356736622,1743069422021,3092.0,0.00032387,31]
[356736623,1743069422365,3092.0,0.00032387,31]
[356736624,1743069422750,3092.0,0.00032387,31]
[356736625,1743069423248,3092.0,0.00032387,31]
[356736626,1743069423562,3092.0,0.00032387,31]
[356736646,1743069550550,2837.94119946,0.00032563,60]
[356736647,1743069599768,5000.0,0.00032563,30]
[356736648,1743069607028,160.27,0.00032563,30]
[356736649,1743069696253,500.0,0.00032563,120]